{"text_format":"3","workbook":"xlsx","n_sheets":4,"sheets":["Tabelle 1","Tabelle 2","Tabelle 3","technische Anleitung"],"not_rendered":{"images":1,"macros":1,"external_links":1,"defined_names":15,"comments":1},"read":"whole","date_system":"1900"}

{"sheet":"Tabelle 1","index":0,"n_rows":63,"n_cols":10,"rows_kept":63}
[]
[null,"Erfassung und Analyse eingesetzter Energieträger gemäß Tabelle 1 (Anlage 2, Ziffer 1 SpaEfV)",{"$nulls":3},"© "]
[]
[null,"Erfassung der Daten für das Jahr:",null,"\"hier auswählen\""]
[null,"Eigenerzeugte Energie im Betrieb (Photovoltaik, Solarthermie, BHKW ..)"]
[null,"Weitergabe der eigenerzeugten Energie (z.B. Einspeisung in öffentliche Netze, Nahwärme .. )"]
[]
[null,null,"Bezeichnung des Energieträgers","Energieträger","Menge (kWh)","Mengenanteil in %","Kosten \n(€, netto)","Kostenanteil in %","Messkonzept","Messgenauigkeit"]
[]
[null,"Technologie",null,"eigenerzeugte Energiemenge"]
{"$rows_empty":7}
[null,"Technologie",null,"weitergegebene Energiemenge"]
{"$rows_empty":7}
[null,"Energieversorgungsunternehmen",null,"bezogene Energiemenge "]
{"$rows_empty":11}
[null,"Jahresenergieverbrauch des Betriebes","Energieträger",null,"Energiemenge [kWh]","Anteil am Gesamtverbrauch","Kosten\n(€, netto)","Kostenanteil \nin %"]
[null,null,"Strom",null,{"$f":"(D61+D48)-D54","v":0},{"$f":"IF(E39<>0,E39/$E$42,\"\")","v":""},{"$f":"G61-(G54+G48)","v":{"v":0,"d":"0 "}},{"$f":"IF(G39<>0,G39/$G$42,\"\")","v":""}]
[null,null,"Brennstoff, Wärme",null,{"$f":"(D62+D49)-D55","v":0},{"$f":"IF(E40<>0,E40/$E$42,\"\")","v":""},{"$f":"G62-(G55+G49)","v":{"v":0,"d":"0 "}},{"$f":"IF(G40<>0,G40/$G$42,\"\")","v":""}]
[null,null,"Treibstoff",null,{"$f":"(D63+D50)-D56","v":0},{"$f":"IF(E41<>0,E41/$E$42,\"\")","v":""},{"v":0,"d":"0 "},""]
[null,null,"Summe:",null,{"$f":"SUM(E39:E41)","v":0},null,{"$f":"SUM(G39:G41)","v":{"v":0,"d":"0 "}}]
[]
[]
[]
[null,null,"Energiemenge",null,null,"Kosten"]
[{"$nulls":3},"Eigenerzeugt",null,null,"Eigenerzeugt"]
[null,null,"Strom",{"$f":"SUMIF(SUCHE_ET,\"Strom\",$E11:$E17)","v":{"v":0,"d":"0.0"}},null,"Strom",{"$f":"SUMIF(SUCHE_ET,\"Strom\",$G11:$G17)","v":{"v":0,"d":"0.0 €"}},null,null,"Quelle Jahreszahlen:"]
[null,null,"Brennstoff, Wärme",{"$f":"SUMIF(SUCHE_ET,\"Brennstoff, Wärme\",$E11:$E17)","v":{"v":0,"d":"0.0"}},null,"Brennstoff, Wärme",{"$f":"SUMIF(SUCHE_ET,\"Brennstoff, Wärme\",$G11:$G17)","v":{"v":0,"d":"0.0 €"}},null,null,"\"hier auswählen\""]
[null,null,"Treibstoff",{"$f":"SUMIF(SUCHE_ET,\"Treibstoff\",$E11:$E17)","v":{"v":0,"d":"0.0"}},null,"Treibstoff",{"$f":"SUMIF(SUCHE_ET,\"Treibstoff\",$G11:$G17)","v":{"v":0,"d":"0.0 €"}},null,null,2016]
[{"$nulls":9},2017]
[{"$nulls":9},2018]
[{"$nulls":3},"Eingespeist",null,null,"Eingespeist",null,null,2019]
[null,null,"Strom",{"$f":"SUMIF(SUCHE_ET2,\"Strom\",E19:E24)","v":{"v":0,"d":"0.0"}},null,"Strom",{"$f":"SUMIF(SUCHE_ET2,\"Strom\",G19:G24)","v":{"v":0,"d":"0.0 €"}},null,null,2020]
[null,null,"Brennstoff, Wärme",{"$f":"SUMIF(SUCHE_ET2,\"Brennstoff, Wärme\",$E19:$E24)","v":{"v":0,"d":"0.0"}},null,"Brennstoff, Wärme",{"$f":"SUMIF(SUCHE_ET2,\"Brennstoff, Wärme\",G19:G24)","v":{"v":0,"d":"0.0 €"}},null,null,2021]
[null,null,"Treibstoff",{"$f":"SUMIF(SUCHE_ET2,\"Treibstoff\",$E19:$E24)","v":{"v":0,"d":"0.0"}},null,"Treibstoff",{"$f":"SUMIF(SUCHE_ET2,\"Treibstoff\",G19:G24)","v":{"v":0,"d":"0.0 €"}},null,null,2022]
[{"$nulls":9},2023]
[{"$nulls":9},2024]
[{"$nulls":9},2025]
[{"$nulls":3},"Bezogen",null,null,"Bezogen",null,null,2026]
[null,null,"Strom",{"$f":"SUMIF(SUCHE_ET3,\"Strom\",E27:E36)","v":{"v":0,"d":"0.0"}},null,"Strom",{"$f":"SUMIF(SUCHE_ET3,\"Strom\",G27:G36)","v":{"v":0,"d":"0.0 €"}}]
[null,null,"Brennstoff, Wärme",{"$f":"SUMIF(SUCHE_ET3,\"Brennstoff, Wärme\",$E27:$E36)","v":{"v":0,"d":"0.0"}},null,"Brennstoff, Wärme",{"$f":"SUMIF(SUCHE_ET3,\"Brennstoff, Wärme\",G27:G36)","v":{"v":0,"d":"0.0 €"}}]
[null,null,"Treibstoff",{"$f":"SUMIF(SUCHE_ET3,\"Treibstoff\",$E27:$E36)","v":{"v":0,"d":"0.0"}},null,"Treibstoff",{"$f":"SUMIF(SUCHE_ET3,\"Treibstoff\",G27:G36)","v":{"v":0,"d":"0.0 €"}}]

{"sheet":"Tabelle 2","index":1,"n_rows":21,"n_cols":12,"rows_kept":21}
[]
[null,"Erfassung und Analyse von Energie verbrauchenden Anlagen und Geräten gemäß Tabelle 2 (Anlage 2, Ziffer 2 SpaEfV)",{"$nulls":7},"© "]
[]
[null,"Energieträger","Verbraucher","Anschlussleistung [kW]","Auslastung des Verbrauchers [%]","Laufzeit [Stunden pro Jahr]","Verbrauch [kWh/a]","Anteil am Jahresgesamtenergieverbrauch [%]","Abwärme [°C]","Baujahr","Messkonzept","Messgenauigkeit"]
[{"$nulls":6},{"$f":"IF(D5<>\"\",D5*E5*F5,\"\")","v":""},{"$f":"IF(G5<>\"\",G5/$F$20,\"\")","v":""}]
[{"$nulls":6},{"$f":"IF(D6<>\"\",D6*E6*F6,\"\")","v":""},""]
[{"$nulls":6},"",""]
[{"$nulls":6},"",""]
[{"$nulls":6},"",""]
[{"$nulls":6},"",""]
[{"$nulls":6},"",""]
[{"$nulls":6},"",""]
[{"$nulls":6},"",""]
[{"$nulls":6},{"$f":"IF(D14<>\"\",D14*E14*F14,\"\")","v":""},""]
[]
[null,"Jahresgesamtverbrauch des Betriebs",null,null,"Energieträger","Energiemenge [kWh]"]
[{"$nulls":4},"Strom",{"$f":"'Tabelle 1'!E39","v":0}]
[{"$nulls":4},"Brennstoff, Wärme",{"$f":"'Tabelle 1'!E40","v":0}]
[{"$nulls":4},"Treibstoff",{"$f":"'Tabelle 1'!E41","v":0}]
[null,"Jahresgesamtverbrauch in Summe:",{"$nulls":3},{"$f":"SUM(F17:F19)","v":0}]
[null,"Prozentualer Wert des zugeteiltens Jahresgesamtverbrauches:",{"$nulls":3},{"$f":"IF(F17<>0,SUM(G5:G14)/SUM(F17:F19),0)","v":{"v":0,"d":"0.0%"}}]

{"sheet":"Tabelle 3","index":2,"n_rows":30,"n_cols":9,"rows_kept":30}
[]
[null,"Bewertung nach interner Verzinsung und Amortisationszeit gemäß Tabelle 3 (Anlage 2, Ziffer 3 SpaEfV)",{"$nulls":5},"©"]
[]
[null,"Maßnahme","Investition \n[EUR; €]","Energieeinsparung\n[kWh]","finanzielle Einsparung\n[EUR/a; €/a]","ökologische Einsparung\n [t CO2 äq./a]","Nutzungsdauer\n[a]","interne Verzinsung\n [%]","statische Amortisation\n[a]"]
[{"$nulls":8},{"$f":"IF(AND(C5<>\"\",E5<>\"\"),C5/E5,\"\")","v":""}]
[{"$nulls":8},{"$f":"IF(AND(C6<>\"\",E6<>\"\"),C6/E6,\"\")","v":""}]
[{"$nulls":8},{"$f":"IF(AND(C7<>\"\",E7<>\"\"),C7/E7,\"\")","v":""}]
[{"$nulls":8},""]
[{"$nulls":8},""]
[{"$nulls":8},""]
[{"$nulls":8},""]
[{"$nulls":8},""]
[{"$nulls":8},""]
[{"$nulls":8},""]
[{"$nulls":8},""]
[{"$nulls":8},""]
{"$rows_empty":13}
[{"$nulls":7},{"$f":"IF(ISERROR(AVERAGE(H16:H29)),\"\",AVERAGE(H16:H29))","v":""}]

{"sheet":"technische Anleitung","index":3,"n_rows":37,"n_cols":1,"rows_kept":37}
["© "]
["Technische Anleitung SpaEfV-Testierungs-Tool"]
["Bitte beachten Sie auch die angefügte PDF Datei in der Mail, welche mit beispielhaften Werten ausgefüllt wurde und auch als Hilfestellung benutzt werden kann. Sollten Sie die PDF Datei nicht erhalten haben oder sonstige Fragen zur Benutzung des Tools haben können Sie sich gerne bei uns melden."]
[]
["Tabelle 1: Erfassung und Analyse eingesetzter Energieträger gemäß Tabelle 1 (Anlage 2, Ziffer 1 SpaEfV)"]
["In Tabelle 1 muss der Verbrauch der eingesetzten Energieträger des Unternehmens vom 01.01. bis zum 31.12. des vorangegangenen Jahres bzw. des letzten abgeschlossenen Geschäftsjahres dargestellt werden."]
["Zuallererst müssen Sie das Jahr definieren, für welche die Daten erhoben wurden. Dazu muss die Zelle D4 mit dem entsprechenden Jahr ausgefüllt werden."]
["Erläuterung einzelner Begriffe:"]
["Technologie = Art der Anlage, die zur eigenerzeugten Energie verwendet wurde; z.B. BHKW, Photovoltaik, Solarthermie,…"]
["Bezeichnung des Energieträgers = genaue Definition des (Primär)energieträgers; z.B. Gas, Heizöl, Pellets,…; da bei bezogenem Strom der Primärenergieträger nicht nachvollzogen werden kann muss in dieser Zelle bei Strom nichts eingetragen werden."]
[]
["Eigenerzeugter Energiemenge:"]
["Wurde im vergangenen Jahr eigenerzeugte Energie im Betrieb genutzt muss das Feld in der Zelle G6 mit „Ja“ markiert werden. "]
["Bei der nun eingeblendeten Tabelle „eigenerzeugte Energie“ muss die Technologie (z.B. BHKW, Photovoltaik, Solarthermie) eingegeben werden. Weiterhin müssen der Energieträger und die Menge der eigenerzeugten Energie angegeben werden."]
["Der Eigenverbrauch der eigenerzeugten Energie wird automatisch aus der Differenz zwischen der eigenerzeugten Energiemenge und der weitergegebenen Energiemenge in der Tabelle \"Jahresenergieverbrauch des Betriebes\" verrechnet."]
[]
["Weitergegebener Energiemenge:"]
["Wenn die eigenerzeugte Energie auch teilweise weitergegeben wurde, z.B. als Einspeisung ins öffentliche Netz muss das Feld in Tabelle 1 Zelle G7 mit „Ja“ markiert werden."]
["Bei der nun angezeigten Tabelle „weitergegebene Energie“ muss die Technologie (z.B. BHKW, Photovoltaik, Solarthermie) eingegeben werden. Weiterhin müssen der Energieträger und die Menge der weitergegebenen Energie angegeben werden."]
[]
["Bezogene Energiemenge:"]
["In der Tabelle „bezogene Energiemenge“ muss die eingekaufte Energiemenge angegeben werden. "]
["Als Erstes muss das Energieversorgungsunternehmen angegeben werden, bei welchem der entsprechende Energieträger eingekauft wurde. Danach muss der Energieträger genauer definiert werden („Bezeichnung des Energieträgers“ (Definition siehe Zelle 8)). Dann muss als Nächstes der zutreffende Energieträger ausgewählt werden. Weiterhin müssen noch die Menge sowie der Mengenanteil der Energie folgen und abschließend die Kosten sowie der Kostenanteil, der für den Einkauf der Energie aufgewendet wurde."]
["Bei vollständiger Angabe aller geforderten Daten berechnet das Excel-Tool dann den Jahresenergieverbrauch des Unternehmens, den Anteil am Gesamtverbrauch, die Kosten sowie den Kostenanteil aus."]
[]
["Tabelle 2: Erfassung und Analyse von Energie verbrauchenden Anlagen und Geräten gemäß Tabelle 2 (Anlage 2, Ziffer 2 SpaEfV)"]
["In Tabelle 2 müssen 90% des Jahresenergieverbrauchs (aus Tabelle 1) einzelnen Verbrauchern/Anlagen zugeordnet werden."]
["Als Erstes muss der Energieträger ausgewählt werden. Im zweiten Schritt muss ein Verbraucher definiert werden. Die genaue Aufteilung sollte sinnvoll nach Anlagen oder Geräten erfolgen, wie z.B. Druckluft, Anlagen zur Wärme- oder Kälteerzeugung, etc. und ist jedem Unternehmen selbst überlassen."]
["Für die Berechnung des Verbrauchs wird das Produkt aus Anschlussleistung, Auslastung des Verbrauchers und der Laufzeit in Stunden pro Jahr verwendet; alternative Berechnungen sind auch gestattet."]
["Anhand des Verbrauchs wird der Anteil am Jahresgesamtenergieverbrauch von selbst berechnet. "]
["Abwärme in °C muss, soweit vorhanden, angegeben werden. Sofern keine Angaben zur Abwärme gemacht werden können, bitte \"keine Angaben\" schreiben."]
["Angabe des Baujahres."]
["Angabe des Messkonzeptes sowie der Messgenauigkeit. Das Messkonzept kann z.B. durch kontiniuerliche Messung mit Zählern erfolgen; andere Möglichkeiten sind z.B. Betriebsstundenzähler, temporäre Messungen, etc."]
[]
[]
["Tabelle 3: Bewertung nach interner Verzinsung und Amortisationszeit gemäß Tabelle 3 (Anlage 2, Ziffer 3 SpaEfV)"]
["In der Tabelle 3 müssen potenzielle Maßnahmen zur Energieeffizienzsteigerung im Unternehmen erläutert werden. Die wichtigsten Größen sind hierbei die Investitionssumme sowie die jährliche finanzielle Einsparung. Als Quotient hieraus lässt sich die statische Amortisationszeit berechnen (die Formel ist im Excel-Tool hinterlegt und muss nicht selber ausgerechnet werden)."]